[Event "Live Chess"]
[Site "Chess.com"]
[Date "2023.05.21"]
[Round "-"]
[White "sup3rm0nk3y"]
[Black "SupremeTactician"]
[Result "0-1"]
[WhiteElo "1320"]
[BlackElo "2216"]
[TimeControl "300"]
[EndTime "3:55:59 PDT"]
[Termination "SupremeTactician won by resignation"]

1. e4 {[%clk 0:04:57.4]} 1... e5 {[%clk 0:04:56]} 2. Nf3 {[%clk 0:04:55.4]} 2...
Nc6 {[%clk 0:04:54.9]} 3. Bc4 {[%clk 0:04:54.3]} 3... Bc5 {[%clk 0:04:54.1]} 4.
d3 {[%clk 0:04:53.3]} 4... Nf6 {[%clk 0:04:53.2]} 5. O-O {[%clk 0:04:49.1]} 5...
O-O {[%clk 0:04:51.9]} 6. Be3 {[%clk 0:04:46.6]} 6... Bb6 {[%clk 0:04:50.6]} 7.
Nc3 {[%clk 0:04:42.2]} 7... d6 {[%clk 0:04:49.1]} 8. Nd5 {[%clk 0:04:38.6]} 8...
Be6 {[%clk 0:04:47.5]} 9. Nxf6+ {[%clk 0:04:27.1]} 9... Qxf6 {[%clk 0:04:45.8]}
10. Bb3 {[%clk 0:04:17.7]} 10... Bg4 {[%clk 0:04:41.2]} 11. a4 {[%clk
0:04:06.7]} 11... Bxf3 {[%clk 0:04:35.4]} 12. Qxf3 {[%clk 0:04:05.2]} 12... Qxf3
{[%clk 0:04:33]} 13. gxf3 {[%clk 0:04:04.3]} 13... Bd4 {[%clk 0:04:25.2]} 14. c3
{[%clk 0:03:59.5]} 14... Bxe3 {[%clk 0:04:24.5]} 15. fxe3 {[%clk 0:03:58.2]}
15... Ne7 {[%clk 0:04:22.9]} 16. f4 {[%clk 0:03:55.2]} 16... exf4 {[%clk
0:04:22.3]} 17. exf4 {[%clk 0:03:54.2]} 17... g6 {[%clk 0:04:21.4]} 18. Rf3
{[%clk 0:03:41]} 18... Kg7 {[%clk 0:04:19]} 19. Rg3 {[%clk 0:03:40.2]} 19... f5
{[%clk 0:04:17.8]} 20. h4 {[%clk 0:03:33.4]} 20... fxe4 {[%clk 0:04:15.5]} 21.
h5 {[%clk 0:03:28.1]} 21... Rxf4 {[%clk 0:04:14]} 22. hxg6 {[%clk 0:03:25.4]}
22... Nxg6 {[%clk 0:04:13]} 23. dxe4 {[%clk 0:03:19.2]} 23... Rxe4 {[%clk
0:04:12.2]} 24. Bc2 {[%clk 0:03:17.8]} 24... Re2 {[%clk 0:04:10.9]} 25. Bxg6
{[%clk 0:03:13.2]} 25... hxg6 {[%clk 0:04:10.4]} 26. b4 {[%clk 0:03:11]} 26...
Rae8 {[%clk 0:04:07.2]} 27. Rf1 {[%clk 0:03:09.2]} 27... Re1 {[%clk 0:04:04.6]}
28. Rxe1 {[%clk 0:03:08.3]} 28... Rxe1+ {[%clk 0:04:04.5]} 29. Kf2 {[%clk
0:03:07.5]} 29... Ra1 {[%clk 0:04:03.8]} 30. a5 {[%clk 0:03:06.4]} 30... Rc1
{[%clk 0:04:03]} 31. Ke2 {[%clk 0:03:04.7]} 31... Rc2+ {[%clk 0:04:02.3]} 32.
Kd3 {[%clk 0:03:03.7]} 32... Rf2 {[%clk 0:04:01.6]} 33. Kc4 {[%clk 0:03:02.2]}
33... Rf5 {[%clk 0:04:00.5]} 34. Kd4 {[%clk 0:02:59.8]} 34... Kf6 {[%clk
0:03:59.8]} 35. Ke4 {[%clk 0:02:58.7]} 35... Re5+ {[%clk 0:03:59.3]} 36. Kd4
{[%clk 0:02:57.8]} 36... g5 {[%clk 0:03:57.5]} 37. Kc4 {[%clk 0:02:55.7]} 37...
Kf5 {[%clk 0:03:56]} 38. Rh3 {[%clk 0:02:51.5]} 38... g4 {[%clk 0:03:54.2]} 39.
Rh7 {[%clk 0:02:50.1]} 39... Kf6 {[%clk 0:03:45.2]} 40. Rxc7 {[%clk 0:02:47.4]}
40... g3 {[%clk 0:03:44.6]} 41. Rc8 {[%clk 0:02:46.6]} 41... g2 {[%clk
0:03:42.8]} 42. Rg8 {[%clk 0:02:44.8]} 42... Rg5 {[%clk 0:03:42.2]} 0-1

[Event "Live Chess"]
[Site "Chess.com"]
[Date "2023.05.21"]
[Round "-"]
[White "KeithArkell"]
[Black "chrisbradgate"]
[Result "1-0"]
[WhiteElo "2501"]
[BlackElo "873"]
[TimeControl "300"]
[EndTime "3:56:08 PDT"]
[Termination "KeithArkell won by checkmate"]

1. d4 {[%clk 0:04:58.8]} 1... d5 {[%clk 0:04:58.3]} 2. Nf3 {[%clk 0:04:57.8]}
2... Nc6 {[%clk 0:04:55.8]} 3. c4 {[%clk 0:04:57.3]} 3... dxc4 {[%clk
0:04:49.9]} 4. e4 {[%clk 0:04:54.5]} 4... Bg4 {[%clk 0:04:48.2]} 5. Bxc4 {[%clk
0:04:53.1]} 5... Qd7 {[%clk 0:04:33.3]} 6. Be3 {[%clk 0:04:42.4]} 6... O-O-O
{[%clk 0:04:32]} 7. d5 {[%clk 0:04:36.1]} 7... Ne5 {[%clk 0:04:29.7]} 8. Nxe5
{[%clk 0:04:35]} 8... Bxd1 {[%clk 0:04:26.9]} 9. Nxd7 {[%clk 0:04:34.2]} 9...
Rxd7 {[%clk 0:04:26.1]} 10. Kxd1 {[%clk 0:04:32.2]} 10... c6 {[%clk 0:04:23.2]}
11. Nc3 {[%clk 0:04:31.1]} 11... cxd5 {[%clk 0:04:20.2]} 12. exd5 {[%clk
0:04:30.4]} 12... Nf6 {[%clk 0:04:10.4]} 13. Ke2 {[%clk 0:04:28.6]} 13... a6
{[%clk 0:03:51.8]} 14. Rac1 {[%clk 0:04:27.1]} 14... Ng4 {[%clk 0:03:50.3]} 15.
Bf4 {[%clk 0:04:25.4]} 15... h6 {[%clk 0:03:34.9]} 16. Na4 {[%clk 0:04:24.2]}
16... Kd8 {[%clk 0:03:03.5]} 17. Nb6 {[%clk 0:04:21.5]} 17... g5 {[%clk
0:02:55.8]} 18. Bb5 {[%clk 0:04:18.1]} 18... gxf4 {[%clk 0:02:50.5]} 19. Rc8#
{[%clk 0:04:16.8]} 1-0

[Event "Live Chess"]
[Site "Chess.com"]
[Date "2023.05.21"]
[Round "-"]
[White "Tilbs_12"]
[Black "Misha145Chess"]
[Result "1-0"]
[WhiteElo "1582"]
[BlackElo "622"]
[TimeControl "300"]
[EndTime "3:56:15 PDT"]
[Termination "Tilbs_12 won by checkmate"]

1. e4 {[%clk 0:04:55.7]} 1... d5 {[%clk 0:04:57.1]} 2. exd5 {[%clk 0:04:54.8]}
2... Nf6 {[%clk 0:04:55.9]} 3. d4 {[%clk 0:04:53.2]} 3... e6 {[%clk 0:04:52.3]}
4. dxe6 {[%clk 0:04:48.4]} 4... Bxe6 {[%clk 0:04:51.9]} 5. Nf3 {[%clk
0:04:47.9]} 5... Bd5 {[%clk 0:04:49.2]} 6. Be2 {[%clk 0:04:45.2]} 6... Bb4+
{[%clk 0:04:45.9]} 7. c3 {[%clk 0:04:44]} 7... Ba5 {[%clk 0:04:41.5]} 8. Bf4
{[%clk 0:04:40.6]} 8... O-O {[%clk 0:04:35.8]} 9. O-O {[%clk 0:04:39.8]} 9...
Re8 {[%clk 0:04:34.3]} 10. Re1 {[%clk 0:04:37.9]} 10... Bxf3 {[%clk 0:04:28.9]}
11. Bxf3 {[%clk 0:04:36.7]} 11... Rxe1+ {[%clk 0:04:28.8]} 12. Qxe1 {[%clk
0:04:35.4]} 12... Nc6 {[%clk 0:04:22.2]} 13. Na3 {[%clk 0:04:23.9]} 13... Qe7
{[%clk 0:04:12.6]} 14. Nc4 {[%clk 0:04:13.2]} 14... Qxe1+ {[%clk 0:04:04.2]} 15.
Rxe1 {[%clk 0:04:11.6]} 15... Bb6 {[%clk 0:03:59.8]} 16. Nxb6 {[%clk 0:04:05.2]}
16... axb6 {[%clk 0:03:58.3]} 17. Bxc7 {[%clk 0:04:02.9]} 17... Rxa2 {[%clk
0:03:55.5]} 18. Rb1 {[%clk 0:03:48.2]} 18... b5 {[%clk 0:03:52.8]} 19. d5 {[%clk
0:03:38]} 19... Na5 {[%clk 0:03:51.1]} 20. Bxa5 {[%clk 0:03:36.2]} 20... Rxa5
{[%clk 0:03:50]} 21. d6 {[%clk 0:03:34.7]} 21... Nd7 {[%clk 0:03:48.1]} 22. Bxb7
{[%clk 0:03:30.2]} 22... Ra7 {[%clk 0:03:44.3]} 23. Bc6 {[%clk 0:03:28.3]} 23...
h5 {[%clk 0:03:33.7]} 24. Bxb5 {[%clk 0:03:25.9]} 24... Ne5 {[%clk 0:03:25.6]}
25. c4 {[%clk 0:03:22.7]} 25... g5 {[%clk 0:03:14.1]} 26. c5 {[%clk 0:03:18.6]}
26... Nd7 {[%clk 0:03:10.6]} 27. c6 {[%clk 0:03:16.5]} 27... Nb6 {[%clk
0:03:07.8]} 28. d7 {[%clk 0:03:14.6]} 28... Nxd7 {[%clk 0:03:05.8]} 29. cxd7
{[%clk 0:03:13.8]} 29... Ra8 {[%clk 0:03:04]} 30. Rc1 {[%clk 0:03:09.4]} 30...
Rd8 {[%clk 0:03:00.8]} 31. Rc8 {[%clk 0:03:07.9]} 31... Rxc8 {[%clk 0:02:57.4]}
32. dxc8=Q+ {[%clk 0:03:06.4]} 32... Kg7 {[%clk 0:02:56.6]} 33. g3 {[%clk
0:03:05.4]} 33... h4 {[%clk 0:02:55.2]} 34. Kf1 {[%clk 0:03:04.2]} 34... Kh6
{[%clk 0:02:52.5]} 35. Ke2 {[%clk 0:03:00.2]} 35... Kh5 {[%clk 0:02:51.7]} 36.
f3 {[%clk 0:02:55.5]} 36... g4 {[%clk 0:02:49.9]} 37. Qf5+ {[%clk 0:02:52.6]}
37... Kh6 {[%clk 0:02:47.7]} 38. Qxg4 {[%clk 0:02:49.4]} 38... hxg3 {[%clk
0:02:47.6]} 39. hxg3 {[%clk 0:02:47.8]} 39... Kh7 {[%clk 0:02:44.5]} 40. Bd3+
{[%clk 0:02:45.6]} 40... Kh8 {[%clk 0:02:43.1]} 41. b4 {[%clk 0:02:34.4]} 41...
f5 {[%clk 0:02:39.1]} 42. Qh5+ {[%clk 0:02:32.9]} 42... Kg7 {[%clk 0:02:36.9]}
43. Qxf5 {[%clk 0:02:30.4]} 43... Kh6 {[%clk 0:02:35.5]} 44. Qc5 {[%clk
0:02:25]} 44... Kg7 {[%clk 0:02:34]} 45. b5 {[%clk 0:02:24]} 45... Kf7 {[%clk
0:02:32.8]} 46. b6 {[%clk 0:02:23.5]} 46... Ke6 {[%clk 0:02:29.6]} 47. b7 {[%clk
0:02:23]} 47... Kd7 {[%clk 0:02:27.3]} 48. b8=Q {[%clk 0:02:15.4]} 48... Ke6
{[%clk 0:02:26]} 49. Qbb6+ {[%clk 0:02:14]} 49... Kf7 {[%clk 0:02:23.7]} 50.
Qcc7+ {[%clk 0:02:13.3]} 50... Kg8 {[%clk 0:02:22.2]} 51. Qbb8# {[%clk
0:02:12.6]} 1-0

[Event "Live Chess"]
[Site "Chess.com"]
[Date "2023.05.21"]
[Round "-"]
[White "Crowded_House"]
[Black "gmnorfolk"]
[Result "0-1"]
[WhiteElo "1635"]
[BlackElo "2106"]
[TimeControl "300"]
[EndTime "3:56:26 PDT"]
[Termination "gmnorfolk won by resignation"]

1. d4 {[%clk 0:04:59.4]} 1... Nf6 {[%clk 0:04:58.6]} 2. Bg5 {[%clk 0:04:58.4]}
2... d5 {[%clk 0:04:56.8]} 3. e3 {[%clk 0:04:57.4]} 3... c5 {[%clk 0:04:53.2]}
4. c3 {[%clk 0:04:55.4]} 4... Qb6 {[%clk 0:04:50.7]} 5. Qb3 {[%clk 0:04:53.1]}
5... c4 {[%clk 0:04:49.8]} 6. Qxb6 {[%clk 0:04:51.5]} 6... axb6 {[%clk
0:04:49.7]} 7. a3 {[%clk 0:04:50.7]} 7... Ne4 {[%clk 0:04:46.8]} 8. Bf4 {[%clk
0:04:42.8]} 8... Nc6 {[%clk 0:04:46.3]} 9. Nf3 {[%clk 0:04:40.7]} 9... b5 {[%clk
0:04:39.8]} 10. Nbd2 {[%clk 0:04:39.9]} 10... Nxd2 {[%clk 0:04:38.1]} 11. Nxd2
{[%clk 0:04:38.2]} 11... b4 {[%clk 0:04:37.7]} 12. Be2 {[%clk 0:04:28.9]} 12...
bxc3 {[%clk 0:04:31.3]} 13. bxc3 {[%clk 0:04:27.8]} 13... Bf5 {[%clk 0:04:30.8]}
14. O-O {[%clk 0:04:17.9]} 14... e6 {[%clk 0:04:29.6]} 15. f3 {[%clk 0:04:06.1]}
15... h6 {[%clk 0:04:20.9]} 16. e4 {[%clk 0:04:05.1]} 16... Bg6 {[%clk
0:04:18.3]} 17. exd5 {[%clk 0:03:57.4]} 17... exd5 {[%clk 0:04:17]} 18. Rfe1
{[%clk 0:03:56.2]} 18... Be7 {[%clk 0:04:12.2]} 19. h3 {[%clk 0:03:38.5]} 19...
O-O {[%clk 0:04:10.8]} 20. Bd1 {[%clk 0:03:31.8]} 20... Bxa3 {[%clk 0:04:05.3]}
21. Nb1 {[%clk 0:03:10.2]} 21... Bb2 {[%clk 0:04:02.9]} 22. Rxa8 {[%clk
0:03:08]} 22... Rxa8 {[%clk 0:04:02.5]} 23. Bd2 {[%clk 0:03:05]} 23... Bxb1
{[%clk 0:03:59.7]} 0-1

[Event "Live Chess"]
[Site "Chess.com"]
[Date "2023.05.21"]
[Round "-"]
[White "raminguy"]
[Black "ZackirtyChess"]
[Result "1-0"]
[WhiteElo "1977"]
[BlackElo "1183"]
[TimeControl "300"]
[EndTime "3:56:27 PDT"]
[Termination "raminguy won by checkmate"]

1. d4 {[%clk 0:04:59.4]} 1... f5 {[%clk 0:04:58.2]} 2. Nc3 {[%clk 0:04:59.3]}
2... Nf6 {[%clk 0:04:56.7]} 3. Bf4 {[%clk 0:04:59.2]} 3... g6 {[%clk 0:04:56.1]}
4. e3 {[%clk 0:04:58.3]} 4... Bg7 {[%clk 0:04:55.2]} 5. Nf3 {[%clk 0:04:57.9]}
5... O-O {[%clk 0:04:54.7]} 6. Bd3 {[%clk 0:04:56.3]} 6... d6 {[%clk 0:04:53.6]}
7. O-O {[%clk 0:04:54.1]} 7... Nbd7 {[%clk 0:04:52.6]} 8. e4 {[%clk 0:04:49.9]}
8... fxe4 {[%clk 0:04:41.5]} 9. Bc4+ {[%clk 0:04:42.8]} 9... Kh8 {[%clk
0:04:40.3]} 10. Ng5 {[%clk 0:04:37.3]} 10... d5 {[%clk 0:04:33.5]} 11. Ne6
{[%clk 0:04:30.3]} 11... Qe8 {[%clk 0:04:28]} 12. Nxd5 {[%clk 0:04:27.1]} 12...
Nxd5 {[%clk 0:04:22.4]} 13. Bxd5 {[%clk 0:04:25.4]} 13... Rb8 {[%clk 0:04:00]}
14. Nxc7 {[%clk 0:04:13.7]} 14... Qd8 {[%clk 0:03:53.3]} 15. Ne6 {[%clk
0:04:12]} 15... Qa5 {[%clk 0:03:43.7]} 16. Bxb8 {[%clk 0:04:06.9]} 16... Qxd5
{[%clk 0:03:37.4]} 17. Nxf8 {[%clk 0:04:05.1]} 17... Nxb8 {[%clk 0:03:28.6]} 18.
c4 {[%clk 0:03:46.3]} 18... Qxc4 {[%clk 0:03:22.6]} 19. Rc1 {[%clk 0:03:44.5]}
19... Qxa2 {[%clk 0:03:07.8]} 20. Rxc8 {[%clk 0:03:42.4]} 20... Nc6 {[%clk
0:03:01.3]} 21. Ne6+ {[%clk 0:03:38.4]} 21... Bf8 {[%clk 0:02:57.9]} 22. Rxf8#
{[%clk 0:03:36.4]} 1-0

[Event "Live Chess"]
[Site "Chess.com"]
[Date "2023.05.21"]
[Round "-"]
[White "ItsNot_Jasper"]
[Black "Dhaydon19"]
[Result "0-1"]
[WhiteElo "1383"]
[BlackElo "2697"]
[TimeControl "300"]
[EndTime "3:56:30 PDT"]
[Termination "Dhaydon19 won by resignation"]

1. d4 {[%clk 0:04:58.1]} 1... c6 {[%clk 0:04:59.2]} 2. c4 {[%clk 0:04:57]} 2...
d5 {[%clk 0:04:58.9]} 3. Nf3 {[%clk 0:04:56.3]} 3... Nf6 {[%clk 0:04:58.1]} 4.
Nc3 {[%clk 0:04:53]} 4... e6 {[%clk 0:04:57.4]} 5. Bf4 {[%clk 0:04:49.2]} 5...
Bd6 {[%clk 0:04:56.2]} 6. Bxd6 {[%clk 0:04:40.4]} 6... Qxd6 {[%clk 0:04:55.1]}
7. e3 {[%clk 0:04:40]} 7... Nbd7 {[%clk 0:04:53.9]} 8. Bd3 {[%clk 0:04:38]} 8...
O-O {[%clk 0:04:51.3]} 9. O-O {[%clk 0:04:36.1]} 9... e5 {[%clk 0:04:47.4]} 10.
cxd5 {[%clk 0:04:33.9]} 10... cxd5 {[%clk 0:04:46.2]} 11. dxe5 {[%clk
0:04:31.2]} 11... Nxe5 {[%clk 0:04:45.1]} 12. Nxe5 {[%clk 0:04:28.5]} 12... Qxe5
{[%clk 0:04:44.2]} 13. Re1 {[%clk 0:04:26.9]} 13... Ng4 {[%clk 0:04:40.1]} 14.
f4 {[%clk 0:04:20.9]} 14... Qd6 {[%clk 0:04:29.6]} 15. Nxd5 {[%clk 0:04:14.7]}
15... Rd8 {[%clk 0:04:27.9]} 16. Be4 {[%clk 0:04:08.8]} 16... Be6 {[%clk
0:04:25.9]} 17. Nc3 {[%clk 0:04:05.5]} 17... Qb6 {[%clk 0:04:23.5]} 18. Qf3
{[%clk 0:03:55.1]} 18... Qxb2 {[%clk 0:04:21.1]} 19. Rac1 {[%clk 0:03:49.4]}
19... Nf6 {[%clk 0:04:18.7]} 20. Bxb7 {[%clk 0:03:46.2]} 20... Rab8 {[%clk
0:04:16.3]} 21. Bc6 {[%clk 0:03:43.4]} 21... g6 {[%clk 0:04:07.9]} 22. Ne4
{[%clk 0:03:29]} 22... Nxe4 {[%clk 0:04:05.3]} 23. Bxe4 {[%clk 0:03:28.3]} 23...
Bxa2 {[%clk 0:04:01.1]} 24. f5 {[%clk 0:03:25.4]} 24... Qe5 {[%clk 0:03:56.5]}
25. fxg6 {[%clk 0:03:22.4]} 25... hxg6 {[%clk 0:03:55.4]} 26. Qf4 {[%clk
0:03:20.5]} 26... Qxf4 {[%clk 0:03:52.4]} 27. exf4 {[%clk 0:03:20.4]} 27... Rd2
{[%clk 0:03:50.9]} 28. f5 {[%clk 0:03:17.5]} 28... gxf5 {[%clk 0:03:48.6]} 29.
Bxf5 {[%clk 0:03:17.4]} 29... Rbb2 {[%clk 0:03:47.6]} 30. Be4 {[%clk 0:03:15]}
30... Be6 {[%clk 0:03:43.2]} 31. Ra1 {[%clk 0:03:10.4]} 31... Rd7 {[%clk
0:03:37.2]} 32. Ra3 {[%clk 0:03:03]} 32... Kf8 {[%clk 0:03:23.1]} 33. Rea1
{[%clk 0:02:59.5]} 33... Rd4 {[%clk 0:03:19.9]} 34. Bf3 {[%clk 0:02:50.1]} 34...
Bd5 {[%clk 0:03:14.9]} 35. Bxd5 {[%clk 0:02:44.3]} 35... Rxd5 {[%clk 0:03:13.8]}
36. Rxa7 {[%clk 0:02:40.3]} 36... Rdd2 {[%clk 0:03:12.5]} 37. Ra8+ {[%clk
0:02:37.3]} 37... Kg7 {[%clk 0:03:11.3]} 38. g3 {[%clk 0:02:31.9]} 38... Rg2+
{[%clk 0:03:09.3]} 39. Kh1 {[%clk 0:02:27.7]} 39... Rxh2+ {[%clk 0:03:08.7]} 40.
Kg1 {[%clk 0:02:27.1]} 40... Rbg2+ {[%clk 0:03:07.9]} 41. Kf1 {[%clk 0:02:26.7]}
41... Rb2 {[%clk 0:03:07]} 42. Kg1 {[%clk 0:02:14.7]} 42... Rbg2+ {[%clk
0:03:05]} 43. Kf1 {[%clk 0:02:13.1]} 43... Rxg3 {[%clk 0:03:04.6]} 44. R1a2
{[%clk 0:02:01.1]} 44... Rh1+ {[%clk 0:03:03.2]} 45. Ke2 {[%clk 0:01:55.8]}
45... Rb3 {[%clk 0:02:53.4]} 46. Kf2 {[%clk 0:01:37.6]} 46... Rbb1 {[%clk
0:02:48.3]} 47. Kf3 {[%clk 0:01:31.9]} 47... Rb3+ {[%clk 0:02:42.6]} 48. Kg2
{[%clk 0:01:30.2]} 48... Rh6 {[%clk 0:02:38.7]} 49. R2a3 {[%clk 0:01:25.3]}
49... Rg6+ {[%clk 0:02:36.6]} 50. Kf2 {[%clk 0:01:24.8]} 50... Rb2+ {[%clk
0:02:35.8]} 51. Kf3 {[%clk 0:01:22.3]} 51... Rf6+ {[%clk 0:02:33.8]} 52. Kg3
{[%clk 0:01:20.9]} 52... Rff2 {[%clk 0:02:29.9]} 53. R3a4 {[%clk 0:01:12.5]}
53... Rg2+ {[%clk 0:02:27.9]} 54. Kf3 {[%clk 0:01:11.8]} 54... Rbf2+ {[%clk
0:02:26.3]} 55. Ke3 {[%clk 0:01:10.8]} 55... Rf5 {[%clk 0:02:19.3]} 56. R8a7
{[%clk 0:01:04.1]} 56... Rg3+ {[%clk 0:02:17.4]} 57. Ke2 {[%clk 0:01:01.5]}
57... Rg6 {[%clk 0:02:11.5]} 58. R7a5 {[%clk 0:00:53.5]} 58... Re6+ {[%clk
0:02:09.3]} 59. Kd3 {[%clk 0:00:53]} 59... Rf3+ {[%clk 0:02:08]} 60. Kd2 {[%clk
0:00:49.9]} 60... Kf6 {[%clk 0:02:05.4]} 61. Rd4 {[%clk 0:00:42.7]} 61... Rb6
{[%clk 0:02:02.8]} 62. Ra2 {[%clk 0:00:34]} 62... Rf2+ {[%clk 0:01:59.5]} 0-1

[Event "Live Chess"]
[Site "Chess.com"]
[Date "2023.05.21"]
[Round "-"]
[White "Brooms1989"]
[Black "hturner40"]
[Result "0-1"]
[WhiteElo "1132"]
[BlackElo "1800"]
[TimeControl "300"]
[EndTime "3:56:39 PDT"]
[Termination "hturner40 won by resignation"]

1. e4 {[%clk 0:04:57.2]} 1... Nc6 {[%clk 0:04:59]} 2. d4 {[%clk 0:04:53.2]} 2...
e5 {[%clk 0:04:57.9]} 3. Nf3 {[%clk 0:04:45]} 3... exd4 {[%clk 0:04:55.5]} 4.
Nxd4 {[%clk 0:04:43.4]} 4... Nf6 {[%clk 0:04:55]} 5. Nc3 {[%clk 0:04:36.7]} 5...
Nxe4 {[%clk 0:04:52.5]} 6. Nxe4 {[%clk 0:04:34.8]} 6... Qe7 {[%clk 0:04:51.3]}
7. Nxc6 {[%clk 0:04:33.2]} 7... Qxe4+ {[%clk 0:04:48.3]} 8. Qe2 {[%clk
0:04:30.4]} 8... Qxe2+ {[%clk 0:04:46.5]} 9. Bxe2 {[%clk 0:04:30.3]} 9... dxc6
{[%clk 0:04:44.9]} 10. O-O {[%clk 0:04:29.3]} 10... Bd6 {[%clk 0:04:39.6]} 11.
Bd3 {[%clk 0:04:22.1]} 11... O-O {[%clk 0:04:37.7]} 12. Re1 {[%clk 0:04:17.4]}
12... Be6 {[%clk 0:04:22.1]} 13. b3 {[%clk 0:04:04.7]} 13... Bb4 {[%clk
0:04:13.3]} 14. Re2 {[%clk 0:03:59.2]} 14... Bc3 {[%clk 0:04:07.5]} 15. Rb1
{[%clk 0:03:58.1]} 15... Rae8 {[%clk 0:03:50]} 16. Bb2 {[%clk 0:03:52.2]} 16...
Bxb2 {[%clk 0:03:46.7]} 17. Rxb2 {[%clk 0:03:52.1]} 17... Bf5 {[%clk 0:03:42.9]}
18. Rxe8 {[%clk 0:03:49.6]} 18... Rxe8 {[%clk 0:03:40.8]} 19. h3 {[%clk
0:03:36.6]} 19... Bxd3 {[%clk 0:03:34.5]} 20. cxd3 {[%clk 0:03:36.5]} 20... Re1+
{[%clk 0:03:31.3]} 21. Kh2 {[%clk 0:03:34]} 21... Rd1 {[%clk 0:03:29.9]} 22. Re2
{[%clk 0:03:31.9]} 22... Kf8 {[%clk 0:03:28.4]} 23. Re3 {[%clk 0:03:10.6]} 23...
Rd2 {[%clk 0:03:25.4]} 24. Kg3 {[%clk 0:03:04.4]} 24... Rxa2 {[%clk 0:03:23.6]}
25. f4 {[%clk 0:03:02.5]} 25... Rb2 {[%clk 0:02:52.2]} 26. d4 {[%clk 0:02:56.9]}
26... a5 {[%clk 0:02:47.4]} 27. f5 {[%clk 0:02:48.4]} 27... Rd2 {[%clk 0:02:40]}
28. Kf3 {[%clk 0:02:27.2]} 28... Rxd4 {[%clk 0:02:36.9]} 29. g4 {[%clk
0:02:26.7]} 29... a4 {[%clk 0:02:20.8]} 30. bxa4 {[%clk 0:02:22.2]} 30... Rxa4
{[%clk 0:02:19.5]} 31. Rd3 {[%clk 0:02:21.7]} 31... Ke7 {[%clk 0:02:11.1]} 32.
Kg3 {[%clk 0:02:13.6]} 32... c5 {[%clk 0:02:04.8]} 33. Kh4 {[%clk 0:02:08.1]}
33... c4 {[%clk 0:02:02.9]} 34. Re3+ {[%clk 0:02:06.9]} 34... Kd7 {[%clk
0:02:00.7]} 35. Re4 {[%clk 0:02:04.3]} 35... b5 {[%clk 0:01:57.3]} 36. Rd4+
{[%clk 0:02:02.9]} 36... Kc6 {[%clk 0:01:55.4]} 37. g5 {[%clk 0:01:58.6]} 37...
c3 {[%clk 0:01:53.8]} 38. Rxa4 {[%clk 0:01:55.4]} 38... bxa4 {[%clk 0:01:52.4]}
39. f6 {[%clk 0:01:55.2]} 0-1

[Event "Live Chess"]
[Site "Chess.com"]
[Date "2023.05.21"]
[Round "-"]
[White "BritishIsles"]
[Black "Keithdfg"]
[Result "0-1"]
[WhiteElo "2400"]
[BlackElo "1989"]
[TimeControl "300"]
[EndTime "3:56:56 PDT"]
[Termination "Keithdfg won on time"]

1. d4 {[%clk 0:04:57.9]} 1... d6 {[%clk 0:04:58.5]} 2. e4 {[%clk 0:04:56.5]}
2... Nf6 {[%clk 0:04:57.3]} 3. Nc3 {[%clk 0:04:55.6]} 3... Nbd7 {[%clk
0:04:55.4]} 4. Nf3 {[%clk 0:04:53.1]} 4... e5 {[%clk 0:04:55.3]} 5. g3 {[%clk
0:04:45.8]} 5... c6 {[%clk 0:04:52.8]} 6. Bg2 {[%clk 0:04:44.9]} 6... Be7 {[%clk
0:04:51]} 7. a4 {[%clk 0:04:43.5]} 7... Qc7 {[%clk 0:04:49.2]} 8. O-O {[%clk
0:04:42.4]} 8... h6 {[%clk 0:04:45.9]} 9. a5 {[%clk 0:04:38.1]} 9... Nf8 {[%clk
0:04:40.3]} 10. b3 {[%clk 0:04:32.1]} 10... Ng6 {[%clk 0:04:38.3]} 11. Bb2
{[%clk 0:04:29.6]} 11... h5 {[%clk 0:04:36.9]} 12. Re1 {[%clk 0:04:04.9]} 12...
h4 {[%clk 0:04:34.3]} 13. Qe2 {[%clk 0:03:56.5]} 13... hxg3 {[%clk 0:04:22.3]}
14. hxg3 {[%clk 0:03:55]} 14... Bg4 {[%clk 0:04:15.6]} 15. Qc4 {[%clk
0:03:50.7]} 15... Rc8 {[%clk 0:04:04.5]} 16. dxe5 {[%clk 0:03:42.6]} 16... dxe5
{[%clk 0:04:01.5]} 17. Ng5 {[%clk 0:03:24]} 17... O-O {[%clk 0:03:59.7]} 18. f3
{[%clk 0:03:12]} 18... Bd7 {[%clk 0:03:55.9]} 19. Ba3 {[%clk 0:03:07.2]} 19...
Bxa3 {[%clk 0:03:50.9]} 20. Rxa3 {[%clk 0:03:07.1]} 20... b5 {[%clk 0:03:47.2]}
21. Qc5 {[%clk 0:03:02.4]} 21... Nh7 {[%clk 0:03:39]} 22. Nxh7 {[%clk
0:03:00.2]} 22... Kxh7 {[%clk 0:03:38]} 23. b4 {[%clk 0:02:56.5]} 23... Be6
{[%clk 0:03:34.4]} 24. Nd1 {[%clk 0:02:52.6]} 24... Rfd8 {[%clk 0:03:30.1]} 25.
Ne3 {[%clk 0:02:51.2]} 25... Rd4 {[%clk 0:03:24.4]} 26. Rd3 {[%clk 0:02:49.2]}
26... Rcd8 {[%clk 0:03:22]} 27. Red1 {[%clk 0:02:46.3]} 27... Rxd3 {[%clk
0:03:16.2]} 28. Rxd3 {[%clk 0:02:44.9]} 28... Rxd3 {[%clk 0:03:15]} 29. cxd3
{[%clk 0:02:44.8]} 29... Qd7 {[%clk 0:03:12.2]} 30. Qc3 {[%clk 0:02:36]} 30...
f6 {[%clk 0:03:10.6]} 31. Nc2 {[%clk 0:02:22.3]} 31... Nf8 {[%clk 0:03:03.8]}
32. d4 {[%clk 0:02:21.1]} 32... Qd6 {[%clk 0:02:57.9]} 33. Kf2 {[%clk
0:02:17.9]} 33... Nd7 {[%clk 0:02:56.6]} 34. Ke3 {[%clk 0:02:11.3]} 34... a6
{[%clk 0:02:54.9]} 35. f4 {[%clk 0:02:10.1]} 35... Bc4 {[%clk 0:02:37.8]} 36.
dxe5 {[%clk 0:02:02.4]} 36... fxe5 {[%clk 0:02:35.8]} 37. Qd2 {[%clk 0:02:01.3]}
37... Qe7 {[%clk 0:02:27.3]} 38. Bf3 {[%clk 0:01:49.4]} 38... Nf6 {[%clk
0:02:16.2]} 39. fxe5 {[%clk 0:00:48.6]} 39... Qxe5 {[%clk 0:02:13.4]} 40. Kf2
{[%clk 0:00:29.5]} 40... Nxe4+ {[%clk 0:02:04.3]} 41. Bxe4+ {[%clk 0:00:28.4]}
41... Qxe4 {[%clk 0:02:03.3]} 42. Ne3 {[%clk 0:00:25.7]} 42... Bd5 {[%clk
0:01:56]} 43. Nxd5 {[%clk 0:00:24.4]} 43... cxd5 {[%clk 0:01:54.5]} 44. Qg5
{[%clk 0:00:20.2]} 44... Qc2+ {[%clk 0:01:47.3]} 45. Kf3 {[%clk 0:00:16.7]}
45... Qd1+ {[%clk 0:01:35.7]} 46. Kg2 {[%clk 0:00:15]} 46... Qe2+ {[%clk
0:01:34.2]} 47. Kg1 {[%clk 0:00:12.8]} 47... Qe4 {[%clk 0:01:26.2]} 48. Qh5+
{[%clk 0:00:11.3]} 48... Kg8 {[%clk 0:01:24.5]} 49. Qg5 {[%clk 0:00:10.2]} 49...
d4 {[%clk 0:01:18.5]} 50. Qd8+ {[%clk 0:00:09]} 50... Kf7 {[%clk 0:01:17.3]} 51.
Qd7+ {[%clk 0:00:07.4]} 51... Kg6 {[%clk 0:01:14.2]} 52. Qd6+ {[%clk 0:00:06.4]}
52... Kg5 {[%clk 0:01:11.9]} 53. Qd8+ {[%clk 0:00:04.3]} 53... Kg4 {[%clk
0:01:08.6]} 54. Qh4+ {[%clk 0:00:03]} 54... Kf3 {[%clk 0:01:06.1]} 55. Qh1+
{[%clk 0:00:01.8]} 55... Ke3 {[%clk 0:01:04.6]} 0-1